Cogmind - Beta 12 @@@ ROGUE MODE // 2023.10.05 @ 09:47:10 Player: Horse Result: Destroyed by G-47 Trooper with Particle Gun Performance ------------- Evolutions (2) 1000 Regions Visited (9) 1800 Robots Destroyed (125) 625 Value Destroyed (4937) 4937 Prototype IDs (6) 120 Alien Tech Used (0) 0 Bonus (343) 343 TOTAL SCORE: 8825 Bonus ------- High Alert Combat Kills 884 Follower Combat Kills 286 Entered Garrisons 400 Friendly Fire -1227 Cogmind --------- Core Integrity 0/550 Matter 282/300 Energy 97/100 System Corruption 0% Temperature Cool (15) Movement Hovering (74) Location -8/Materials Parts ------- > --- POWER (1) -------- (None) > --- PROPULSION (3) --- Combat Airjet Combat Airjet Combat Airjet > --- UTILITY (5) ------ Improved Heat Sink Medium Storage Unit Advanced Targeting Computer > --- WEAPON (2) ------- Heavy Particle Gun Mini Grenade Launcher > --- INVENTORY (10) --- Combat Airjet Combat Airjet Compact Battery (200) Trap Scanner Core Analyzer Transmission Jammer Reactive Plating Beamcaster Heavy Rocket Launcher Datajack Peak State ------------ > --- POWER ------------ Light Nuclear Core > --- PROPULSION ------- Combat Airjet Combat Airjet Combat Airjet > --- UTILITY ---------- Improved Heat Sink Medium Storage Unit Advanced Targeting Computer Improved Utility Shielding Hardlight Generator > --- WEAPON ----------- Enhanced Autogun Katana > --- INVENTORY -------- VSS Leg Combat Airjet Combat Airjet Trap Scanner Reactive Plating Reflective Plating Heavy Rocket Launcher Datajack Plasma Cutter Plasma Cutter [Rating: 41] Favorites ----------- Power Light Nuclear Core Engine Light Angular Momentum Engine Power Core Light Nuclear Core Propulsion Improved Carbon-fiber Leg Leg Improved Carbon-fiber Leg Wheel Compact Wheel Hover Unit Combat Airjet Utility Medium Storage Unit Device Improved Heat Sink Storage Medium Storage Unit Processor Advanced Targeting Computer Protection Improved Utility Shielding Weapon Beamcaster Energy Gun Beamcaster Energy Cannon Advanced Beam Cannon Ballistic Gun Enhanced Autogun Launcher Heavy Rocket Launcher Special Weapon Plasma Cutter Slashing Weapon Katana Special Melee Weapon Datajack Build | -11 -10 -10 -9 -9 -8 -8 -8 -8 -8 ------- Run | Jun Mat Min Mat Min Mat Gar Mat Gar Mat Slots Evolved 4 | . . . 2 . 2 . . . . Power . | . . . . . . . . . . Propulsion 1 | . . . . . 1 . . . . Utility 3 | . . . 2 . 1 . . . . Weapon . | . . . . . . . . . . Parts Attached 137 | 6 3 11 9 . 46 34 5 14 9 Power 12 | 1 . 2 . . 3 2 1 1 2 Engine 5 | 1 . 1 . . 1 1 . . 1 Core 7 | . . 1 . . 2 1 1 1 1 Reactor . | . . . . . . . . . . Propulsion 21 | 2 . 3 1 . 7 6 . . 2 Treads . | . . . . . . . . . . Leg 13 | . . 3 1 . 7 2 . . . Wheel 2 | 2 . . . . . . . . . Hover 6 | . . . . . . 4 . . 2 Flight . | . . . . . . . . . . Utility 51 | 2 1 1 6 . 22 9 2 5 3 Device 31 | 1 . . 3 . 16 5 2 2 2 Storage 2 | 1 1 . . . . . . . . Processor 3 | . . . 1 . 1 1 . . . Hackware . | . . . . . . . . . . Protection 15 | . . 1 2 . 5 3 . 3 1 Artifact . | . . . . . . . . . . Weapon 53 | 1 2 5 2 . 14 17 2 8 2 Energy Gun 14 | . 2 2 2 . 6 . . 1 1 Energy Cannon 3 | . . . . . 2 1 . . . Ballistic Gun 11 | 1 . 1 . . 2 5 1 1 . Ballistic Cannon . | . . . . . . . . . . Launcher 12 | . . . . . 4 5 . 2 1 Special Weapon 6 | . . 2 . . . 2 . 2 . Impact Weapon . | . . . . . . . . . . Slashing Weapon 5 | . . . . . . 3 1 1 . Piercing Weapon . | . . . . . . . . . . Special Melee Weapon 2 | . . . . . . 1 . 1 . Unidentified Prototypes 4 | . . . . . 3 . . . 1 Parts Lost 19 | . . . 1 . 5 3 1 4 5 Power 2 | . . . . . . . . . 2 Propulsion 2 | . . . . . 1 1 . . . Utility 7 | . . . 1 . 2 1 . 1 2 Weapon 8 | . . . . . 2 1 1 3 1 Highest Loss Streak 5 | . . . 1 . 1 1 1 2 5 To Critical Strikes . | . . . . . . . . . . Average Slot Usage (%) 99 | . 96 100 95 100 99 99 98 99 96 Engine 4 | . 14 8 11 11 1 . 2 . 6 Core 6 | . . 5 . . 7 8 6 9 2 Leg 17 | . . 15 22 22 26 24 . . . Wheel 3 | . 28 12 . . . . . . . Hover 5 | . . . . . . 2 27 27 25 Device 15 | . 14 3 18 22 19 18 18 12 10 Storage 10 | . 14 14 11 11 9 9 9 9 9 Processor 2 | . . . . . 1 . 9 9 9 Protection 13 | . . 10 9 11 15 17 9 14 15 Energy Gun 7 | . 11 15 22 22 6 . . 3 9 Energy Cannon 3 | . . . . . 7 4 . . . Ballistic Gun 4 | . 14 4 . . 3 5 1 1 8 Launcher 1 | . . . . . . 2 5 5 . Special Weapon 1 | . . 8 . . . 1 . . . Slashing Weapon 1 | . . . . . . 3 9 6 . Naked Turns . | . . . . . . . . . . Heaviest Build 42 | 13 21 30 33 33 41 42 33 37 37 Greatest Support 54 | 26 26 30 30 30 54 53 36 36 36 Greatest Overweight (x) 1 | . . 1 1 1 1 1 . 1 1 Average Overweight (x) . | . . . . 1 . . . . . Largest Inventory Capacity 10 | 8 10 10 10 10 10 10 10 10 10 Average Capacity 9 | 7 8 10 10 10 10 10 10 10 10 Most Carried 10 | 5 10 10 10 10 10 10 10 10 10 Average Carried 9 | 2 5 9 8 10 9 9 9 9 9 Final Capacity 10 | 8 10 10 10 10 10 10 10 10 10 Final Carried 10 | 4 10 10 10 10 10 10 10 9 10 Class Distribution -------------------- 50% | Mutant 49% | Scavenger-Mutant Dominant Class ---------------- Mutant | -10/Materials Mutant | -10/Mines Scavenger-Mutant | -9/Materials Scavenger-Mutant | -9/Mines Mutant | -8/Materials Mutant | -8/Garrison Scavenger-Mutant | -8/Materials Scavenger-Mutant | -8/Garrison Scavenger-Mutant | -8/Materials Resources | -11 -10 -10 -9 -9 -8 -8 -8 -8 -8 ----------- Run | Jun Mat Min Mat Min Mat Gar Mat Gar Mat Matter Collected 2424 | 186 135 202 75 . 682 626 62 369 87 Remotely . | . . . . . . . . . . Salvage Created 4108 | 116 207 385 343 . 1373 1001 273 236 174 Parts 267 | 5 10 34 19 . 79 74 15 23 8 Haulers Intercepted 8 | . 1 . 1 . 6 . . . . Recyclers Shooed 2 | . . . . . 2 . . . . Parts Field Recycled . | . . . . . . . . . . Retrieved Matter . | . . . . . . . . . . Parts Self-Destructed . | . . . . . . . . . . Prevented . | . . . . . . . . . . Kills | -11 -10 -10 -9 -9 -8 -8 -8 -8 -8 ------- Run | Jun Mat Min Mat Min Mat Gar Mat Gar Mat Combat Hostiles Destroyed 102 | . 2 10 6 . 34 24 6 18 2 Melee 15 | . . . . . . 7 3 5 . Guns 40 | . 2 10 6 . 17 3 . 1 1 Cannons 12 | . . . . . 9 3 . . . AOE 35 | . . . . . 8 11 3 12 1 Classes Destroyed 13 | 2 4 1 2 . 1 3 . . . Worker 3 | . 1 . . . . . 2 . . Builder 2 | . . . . . 2 . . . . Tunneler 3 | 1 . 1 . . 1 . . . . Hauler 8 | . 1 . 1 . 6 . . . . Recycler 1 | 1 . . . . . . . . . Watcher 3 | . 1 . 1 . . . . . 1 Swarmer 43 | . . 8 . . 14 9 . 12 . Grunt 36 | . 2 2 4 . 15 4 4 4 1 Brawler 2 | . . . 1 . . 1 . . . Duelist 2 | . . . . . . 1 1 . . Sentry 15 | . . . 1 . 5 6 . 2 1 Specialist 1 | . . . . . . 1 . . . Hunter 3 | . . . . . . 2 1 . . Thug 2 | . . 2 . . . . . . . Savage 1 | . . . . . . . . . 1 Best Kill Streak 7 | 2 3 3 5 . 7 3 7 7 2 Combat Bots Only 7 | . 2 3 5 . 6 3 5 7 1 Max Kills in Single Turn 3 | 1 2 2 1 . 2 3 3 3 2 Gunslinging 1 | . 1 . . . . . . . . Exploded 3 | . . . . . 2 3 3 3 1 Melee 1 | . . . . . . 1 1 1 . Uniques/NPCs Destroyed . | . . . . . . . . . . Combat | -11 -10 -10 -9 -9 -8 -8 -8 -8 -8 -------- Run | Jun Mat Min Mat Min Mat Gar Mat Gar Mat Damage Taken 4069 | . 66 242 88 . 1183 1005 264 622 599 Core 619 | . 10 51 . . 159 61 46 144 148 Absorbed by Shields 771 | . . . . . 204 351 80 136 . Redirected to Shielding 108 | . . 2 . . 30 41 . 7 28 Regen/Repaired (Parts) 363 | . . . 166 . . . 109 . 88 Core Remaining (%) 91 | 100 . 75 . 100 . . . . . Volleys Fired 287 | 8 19 42 14 . 88 71 4 30 11 Largest 2 | 1 2 2 2 . 2 2 1 2 2 Hottest 150 | 20 60 150 150 . 143 104 39 85 88 Shots Fired 487 | 8 36 84 28 . 163 110 4 32 22 Gun 256 | 8 36 36 28 . 86 24 . 16 22 Cannon 96 | . . . . . 63 33 . . . Launcher 49 | . . . . . 14 17 4 14 . Special 86 | . . 48 . . . 36 . 2 . Kinetic 93 | 8 19 14 . . 17 24 . . 11 Thermal 322 | . . 70 28 . 126 69 . 18 11 Explosive 49 | . . . . . 14 17 4 14 . Electromagnetic 23 | . 17 . . . 6 . . . . Robot Hit Streak 22 | 8 9 8 8 . 18 22 3 11 9 Robot Miss Streak 4 | . 4 3 2 . 3 2 1 1 2 Penetration Max . | . . . . . . . . . . Secondary Targets 6 | . 1 2 1 . 1 . . . 1 Max Gunslinging Chain 1 | . 1 1 1 . 1 . . . 1 Shots Hit Robots 368 | 8 17 56 18 . 108 97 14 34 16 Core Hits 203 | 3 7 23 9 . 65 50 11 27 8 Critical Kills 1 | . . . . . 1 . . . . Critical Parts Destroyed . | . . . . . . . . . . Critical Strikes 18 | . . 3 3 . 8 2 . 2 . Burn 12 | . . 2 3 . 7 . . . . Meltdown 1 | . . . . . 1 . . . . Sever 5 | . . 1 . . . 2 . 2 . Melee Attacks 106 | . . . . . . 53 16 37 . Impact . | . . . . . . . . . . Slashing 97 | . . . . . . 49 16 32 . Piercing . | . . . . . . . . . . Sneak Attacks 10 | . . . . . . 4 1 5 . Combat Hostiles . | . . . . . . . . . . Follow-up Attacks 1 | . . . . . . . . 1 . Damage Inflicted 10515 | 99 271 736 365 . 3338 2748 767 1624 567 Guns 3099 | 99 271 357 365 . 1291 297 . 156 263 Cannons 1066 | . . . . . 810 256 . . . Explosions 3846 | . . . . . 1237 822 389 1095 303 Melee 1759 | . . . . . . 1031 378 350 . Ramming 1 | . . . . . . . . . 1 Kinetic 991 | 99 92 116 . . 248 297 . . 139 Thermal 3652 | . . 620 365 . 1766 598 . 179 124 Explosive 3846 | . . . . . 1237 822 389 1095 303 Electromagnetic 266 | . 179 . . . 87 . . . . Impact . | . . . . . . . . . . Slashing 1759 | . . . . . . 1031 378 350 . Piercing . | . . . . . . . . . . Highest Corruption 5 | . . . 5 5 . . . . . Average Corruption 5 | . . . 5 5 . . . . . Corruption Purged . | . . . . . . . . . . Corruption Blocked . | . . . . . . . . . . Effects 11 | . . . 7 4 . . . . . Message Errors 5 | . . . 4 1 . . . . . Matter Fused 1 | . . . 1 . . . . . . Heat Flow Errors 2 | . . . 2 . . . . . . Energy Discharges 2 | . . . . 2 . . . . . Data Loss (minor) 1 | . . . . 1 . . . . . Overload Shots . | . . . . . . . . . . Overflow Damage 152 | . . . . . 20 51 5 55 21 Projectiles 3 | . . . . . 3 . . . . Explosions 133 | . . . . . 17 40 . 55 21 Melee 16 | . . . . . . 11 5 . . Knockbacks . | . . . . . . . . . . Impact . | . . . . . . . . . . Kinetic . | . . . . . . . . . . Secondary . | . . . . . . . . . . Self-Inflicted Damage 255 | . . . . . 38 38 29 51 99 Shots 7 | . . . . . 1 2 1 2 1 Rammed 1 | . . . . . . . . . 1 Targets Rammed 1 | . . . . . . . . . 1 Kicked . | . . . . . . . . . . Crushed . | . . . . . . . . . . Highest Temperature 449 | . 30 288 449 . 236 50 . 171 273 Average Temperature 69 | . 20 70 93 . 73 17 . 64 113 Received Heat Transfer 1518 | . 39 48 33 . 590 123 107 236 342 Effects 1 | . . . 1 . . . . . . Shutdowns 1 | . . . 1 . . . . . . Siege Activations . | . . . . . . . . . . Robots Corrupted . | . . . . . . . . . . Combat Hostiles . | . . . . . . . . . . Parts Fried . | . . . . . . . . . . Impact Corruptions . | . . . . . . . . . . Robots Melted 1 | . . . . . 1 . . . . Combat Hostiles . | . . . . . . . . . . Parts Melted 17 | . . 4 2 . 11 . . . . Heat Transferred 8732 | . . 1924 888 . 3626 1591 . 444 259 Parts Sabotaged . | . . . . . . . . . . Parts Stolen . | . . . . . . . . . . Parts Stripped . | . . . . . . . . . . Power Chain Reactions . | . . . . . . . . . . Missiles Intercepted . | . . . . . . . . . . Alert | -11 -10 -10 -9 -9 -8 -8 -8 -8 -8 ------- Run | Jun Mat Min Mat Min Mat Gar Mat Gar Mat Peak Influence 1447 | 10 176 208 246 95 619 1447 881 1432 780 Initial 705 | . 6 68 . 95 37 304 705 520 698 Average 485 | 2 91 84 160 95 317 827 782 1000 721 Maximum Alert Level 4 | . . 1 1 . 2 4 3 4 3 Low Security (%) 31 | 100 100 71 60 100 32 . . . . Level 1 16 | . . 28 39 . 26 13 . . . Level 2 18 | . . . . . 40 21 . 17 15 Level 3 21 | . . . . . . 35 100 43 84 Level 4 11 | . . . . . . 29 . 39 . Level 5 . | . . . . . . . . . . High Security . | . . . . . . . . . . Max Security . | . . . . . . . . . . Squads Dispatched 19 | . 4 . 2 . 7 . 1 . 5 Investigation 12 | . 2 . 2 . 6 . 1 . 1 Extermination . | . . . . . . . . . . Reinforcement 6 | . 2 . . . 1 . . . 3 Assault . | . . . . . . . . . . Garrison 1 | . . . . . . . . . 1 Intercept . | . . . . . . . . . . Searches Triggered . | . . . . . . . . . . Construction Impeded 2 | . . . . . 1 . . . 1 Haulers Reinforced . | . . . . . . . . . . Active Scanning Responses . | . . . . . . . . . . Cargo Convoy Interrupts . | . . . . . . . . . . Stealth | -11 -10 -10 -9 -9 -8 -8 -8 -8 -8 --------- Run | Jun Mat Min Mat Min Mat Gar Mat Gar Mat Distress Signals 4 | . . . 1 . 2 . . . 1 Communications Jammed . | . . . . . . . . . . Distress Signals . | . . . . . . . . . . Times Spotted 149 | . 11 11 10 . 45 26 10 23 13 Peak Tracking Total 7 | . 5 3 4 . 6 6 3 5 7 Tactical Retreats 7 | . . . 2 . 2 . 1 2 . Traps | -11 -10 -10 -9 -9 -8 -8 -8 -8 -8 ------- Run | Jun Mat Min Mat Min Mat Gar Mat Gar Mat Traps Triggered 5 | . 1 . . . 1 2 . . 1 Indirectly . | . . . . . . . . . . Trap Hack Attempts . | . . . . . . . . . . Triggered . | . . . . . . . . . . Disarmed . | . . . . . . . . . . Reprogrammed . | . . . . . . . . . . Reused . | . . . . . . . . . . Traps Extracted . | . . . . . . . . . . Installed . | . . . . . . . . . . Triggered . | . . . . . . . . . . Machines | -11 -10 -10 -9 -9 -8 -8 -8 -8 -8 ---------- Run | Jun Mat Min Mat Min Mat Gar Mat Gar Mat Machines Disabled 23 | . 2 . . . 4 10 . 5 2 Max in Single Turn 2 | . 1 . . . 1 2 . 2 2 Garrison Relay 6 | . . . . . . 4 . 2 . Phase Generator 2 | . . . . . . 1 . 1 . Machines Repaired . | . . . . . . . . . . Machines Sabotaged . | . . . . . . . . . . Overloaded Fab Kills . | . . . . . . . . . . Hacking | -11 -10 -10 -9 -9 -8 -8 -8 -8 -8 --------- Run | Jun Mat Min Mat Min Mat Gar Mat Gar Mat Machines Accessed 29 | . 1 . 2 . 12 2 4 3 5 Terminals 18 | . 1 . 1 . 7 2 2 3 2 Fabricators . | . . . . . . . . . . Repair Stations 4 | . . . 1 . 1 . 1 . 1 Recycling Units 2 | . . . . . 2 . . . . Scanalyzers 2 | . . . . . 1 . . . 1 Garrison Access 3 | . . . . . 1 . 1 . 1 Total Hacks 96 | . 8 . 7 . 39 3 13 10 16 Successful 44 | . 3 . 4 . 17 . 5 4 11 Failed 51 | . 5 . 3 . 21 3 8 6 5 Catastrophic 7 | . . . . . 2 1 1 2 1 Database Lockouts 1 | . . . . . 1 . . . . Manual 45 | . 6 . 1 . 21 . 6 5 6 Terminals 61 | . 8 . 2 . 26 3 6 10 6 Fabricators . | . . . . . . . . . . Repair Stations 15 | . . . 5 . 3 . 3 . 4 Recycling Units 5 | . . . . . 5 . . . . Scanalyzers 9 | . . . . . 4 . . . 5 Garrison Access 6 | . . . . . 1 . 4 . 1 Terminal Hacks 12 | . 2 . . . 6 . 1 3 . Robot Analysis 3 | . . . . . 3 . . . . Prototype ID Bank 1 | . 1 . . . . . . . . Open Door 1 | . . . . . . . . 1 . Emergency Access Points 1 | . . . . . . . . 1 . Terminal Index 2 | . 1 . . . 1 . . . . Unreport Threat 2 | . . . . . 1 . 1 . . Recall Investigation 1 | . . . . . 1 . . . . Garrison Registry 1 | . . . . . . . . 1 . Fabricator Hacks . | . . . . . . . . . . Repair Station Hacks 10 | . . . 4 . 1 . 2 . 3 Scan Component 6 | . . . 2 . 1 . 1 . 2 Repair 4 | . . . 2 . . . 1 . 1 Recycling Unit Hacks 1 | . . . . . 1 . . . . Retrieve Components 1 | . . . . . 1 . . . . Scanalyzer 8 | . . . . . 4 . . . 4 Insert Component 4 | . . . . . 2 . . . 2 Analyze 4 | . . . . . 2 . . . 2 Garrison Access Hacks 3 | . . . . . 1 . 1 . 1 Unlock Access 3 | . . . . . 1 . 1 . 1 Unauthorized Hacks 10 | . 1 . . . 4 . 1 1 3 Terminals 9 | . 1 . . . 3 . 1 1 3 Botnet 7 | . 1 . . . 3 . 1 1 1 Detonate 1 | . . . . . . . . . 1 Disrupt 1 | . . . . . . . . . 1 Fabricators . | . . . . . . . . . . Repair Stations . | . . . . . . . . . . Recycling Units 1 | . . . . . 1 . . . . Reject 1 | . . . . . 1 . . . . Scanalyzers . | . . . . . . . . . . Garrison Access . | . . . . . . . . . . Data Cores Recovered . | . . . . . . . . . . Used . | . . . . . . . . . . Hacking Detections 27 | . 1 . 2 . 11 2 4 2 5 Full Trace Events 12 | . 1 . 2 . 6 . 1 1 1 Feedback Events . | . . . . . . . . . . Feedback Blocked . | . . . . . . . . . . Robot Schematics Acquired . | . . . . . . . . . . Robots Built . | . . . . . . . . . . Authchips . | . . . . . . . . . . Time . | . . . . . . . . . . Total Robot Build Rating . | . . . . . . . . . . Part Schematics Acquired 3 | . . . . . 1 . . . 2 Parts Built . | . . . . . . . . . . Authchips . | . . . . . . . . . . Time . | . . . . . . . . . . Total Part Build Rating . | . . . . . . . . . . Parts Repaired 4 | . . . 2 . . . 1 . 1 Time 164 | . . . 76 . . . 38 . 50 Parts Recycled . | . . . . . . . . . . Recycled Matter . | . . . . . . . . . . Retrieved Matter . | . . . . . . . . . . Retrieved Components 9 | . . . . . 9 . . . . Parts Scanalyzed 4 | . . . . . 2 . . . 2 Part Schematics Acquired 3 | . . . . . 1 . . . 2 Parts Damaged . | . . . . . . . . . . Bothacking | -11 -10 -10 -9 -9 -8 -8 -8 -8 -8 ------------ Run | Jun Mat Min Mat Min Mat Gar Mat Gar Mat Used RIF Installer . | . . . . . . . . . . Robots Hacked . | . . . . . . . . . . Non-combat . | . . . . . . . . . . Combat . | . . . . . . . . . . Robot Hacks Applied . | . . . . . . . . . . Relay Couplers Released 27 | . . . . . . 19 . 8 . Machine Destruction 27 | . . . . . . 19 . 8 . Fabnet Peak Effective % . | . . . . . . . . . . Robots Rewired 6 | . . . . . . 3 . 3 . Allies Hacked . | . . . . . . . . . . Hacks Repelled . | . . . . . . . . . . Allies | -11 -10 -10 -9 -9 -8 -8 -8 -8 -8 -------- Run | Jun Mat Min Mat Min Mat Gar Mat Gar Mat Total Allies 8 | . . . . 2 . 3 . 3 . Largest Group 3 | . . . . 2 2 3 . 3 3 Highest-Rated Group 71 | . . . . 40 40 48 . 71 71 Highest-Rated Ally 31 | . . . . 31 31 16 . 31 31 Total Orders . | . . . . . . . . . . Ally Attacks 60 | . . . . . 9 22 . 18 11 Total Damage 973 | . . . . . 126 287 . 355 205 Kills 12 | . . . . . 2 4 . 4 2 Allies Corrupted . | . . . . . . . . . . Allies Melted . | . . . . . . . . . . Intel | -11 -10 -10 -9 -9 -8 -8 -8 -8 -8 ------- Run | Jun Mat Min Mat Min Mat Gar Mat Gar Mat Robot Analysis Total 3 | . . . . . 3 . . . . Derelict Logs Recovered 2 | . . 1 . 1 . . . . . Drone Launches . | . . . . . . . . . . Drone Recoveries . | . . . . . . . . . . Exploration | -11 -10 -10 -9 -9 -8 -8 -8 -8 -8 ------------- Run | Jun Mat Min Mat Min Mat Gar Mat Gar Mat Turns Passed 6782 | 65 341 1090 384 192 1716 1705 195 695 399 Spaces Moved 4381 | 42 289 773 122 102 992 1002 149 528 382 Core 8 | 8 . . . . . . . . . Treads . | . . . . . . . . . . Legs 2484 | . . 432 122 102 992 836 . . . Wheels 664 | 34 289 341 . . . . . . . Hover 1225 | . . . . . . 166 149 528 382 Flight . | . . . . . . . . . . Fastest Speed 50 | 50 90 90 120 190 120 74 74 74 74 Average Speed 109 | 85 90 106 169 190 123 113 74 86 82 Slowest Speed 190 | 100 90 190 190 190 190 144 74 144 147 Overloaded Moves . | . . . . . . . . . . Propulsion Burnouts . | . . . . . . . . . . Robots Hopped . | . . . . . . . . . . Cave-ins Triggered . | . . . . . . . . . . Exploration Rate (%) 47 | 5 49 98 13 47 73 82 13 58 35 Regions Visited 9 Branch Regions 2 Pre-discovered Areas 1 | . . 1 . . . . . . . Known Exits Taken 3 | . . . 1 . 1 . 1 . . Unknown Exits Taken 4 | 1 1 1 . 1 . . . . . Scrap Searched 1 | . . 1 . . . . . . . Spaces Dug 14 | . . . . . 9 2 . 3 . Terrain Destroyed 497 | . . . . . 64 152 49 216 16 Melee 3 | . . . . . . . . 3 . Projectile 2 | . . . . . 2 . . . . AOE 492 | . . . . . 62 152 49 213 16 Terrain Rammed . | . . . . . . . . . . Walls Destroyed . | . . . . . . . . . . Machines Disabled . | . . . . . . . . . . Actions | -11 -10 -10 -9 -9 -8 -8 -8 -8 -8 --------- Run | Jun Mat Min Mat Min Mat Gar Mat Gar Mat Total 5655 | 60 334 909 269 101 1315 1344 204 678 441 Wait 631 | . 14 60 120 . 156 152 27 73 29 Move 4371 | 41 288 772 121 101 991 1000 148 527 382 Hop . | . . . . . . . . . . Pick Up 54 | 5 7 8 4 . 14 10 2 . 4 Fast Attach 24 | 5 1 4 1 . 5 1 1 2 4 Attach 20 | 1 1 . 3 . 8 5 . 2 . Detach 7 | . 1 1 1 . 3 1 . . . Swap 93 | . 1 7 5 . 33 28 4 10 5 Drop 51 | . 2 15 . . 17 10 2 . 5 Fire 287 | 8 19 42 14 . 88 71 4 30 11 Melee 103 | . . . . . . 53 16 34 . Ram 1 | . . . . . . . . . 1 Kick . | . . . . . . . . . . Crush . | . . . . . . . . . . Escape Stasis 5 | . . . . . . 5 . . . Rewire 8 | . . . . . . 8 . . . Trap . | . . . . . . . . . . Miscellaneous . | . . . . . . . . . . Route ------- -11/Junkyard -10/Materials (discovered 2 exits: *Mat / [*Min]) -10/Mines (discovered 2 exits: *Mat x2) -9/Materials -9/Mines -8/Materials (discovered 3 exits: *Fac x2 / Gar) -8/Garrison (discovered 4 exits: *Mat x4) -8/Materials -8/Garrison (discovered 3 exits: *Mat x3) -8/Materials (discovered 2 exits: *Fac / Gar) History --------- Turn | Location | Event 11 | -11/Junkyard | Discovered new exit (range 15) 66 | -11/Junkyard | Entered Materials 203 | -10/Materials | Discovered new exit (range 11) 301 | -10/Materials | Discovered new exit (range 13) 310 | -10/Materials | Build established: Mutant 407 | -10/Materials | Entered Mines 566 | -10/Mines | Discovered new exit (range 8) 635 | -10/Mines | Discovered new exit (range 13) 690 | -10/Mines | Joined a pair of Derelicts in attacking an 0b10 outpost 1263 | -10/Mines | Learned location of Storage (-7) 1342 | -10/Mines | Build established: Scavenger-Mutant 1497 | -10/Mines | Entered Materials 1497 | -9/Materials | Evolved 2 slots: Utility x2 1498 | -9/Materials | Identified exit to Mines 1810 | -9/Materials | Repaired Carbon-fiber Leg 1849 | -9/Materials | Repaired Carbon-fiber Leg 1881 | -9/Materials | Entered Mines 1925 | -9/Mines | Learned location of 1 exit from Materials 2013 | -9/Mines | Discovered new exit (range 11) 2063 | -9/Mines | Assembled infested the area 2073 | -9/Mines | Entered Materials 2073 | -8/Materials | Accompanied by 2 allies 2073 | -8/Materials | Evolved 2 slots: Propulsion x1, Utility x1 2074 | -8/Materials | Identified exit to Factory 2078 | -8/Materials | Led the pair of lost Derelicts to an unsafe place 3020 | -8/Materials | Build established: Mutant 3114 | -8/Materials | Discovered exit to Factory (range 13) 3201 | -8/Materials | Central database locked down 3783 | -8/Materials | Identified exit to Garrison 3789 | -8/Materials | Entered Garrison 3962 | -8/Garrison | Triggered checkpoint 4091 | -8/Garrison | Discovered new exit (range 8) 4170 | -8/Garrison | Triggered checkpoint 4293 | -8/Garrison | Discovered new exit (range 11) 4306 | -8/Garrison | Triggered checkpoint 4325 | -8/Garrison | Garrison Relay disabled 4365 | -8/Garrison | Triggered checkpoint 4415 | -8/Garrison | Discovered new exit (range 3) 4490 | -8/Garrison | Triggered checkpoint 4520 | -8/Garrison | Triggered checkpoint 4574 | -8/Garrison | Triggered checkpoint 4937 | -8/Garrison | Garrison Relay disabled 4957 | -8/Garrison | Discovered new exit (range 3) 4999 | -8/Garrison | Phase Generator disabled 5387 | -8/Garrison | Attempted to access garrison exit controls, blocked by remote lockdown 5422 | -8/Garrison | Build established: Scavenger-Mutant 5438 | -8/Garrison | Garrison Relay disabled 5478 | -8/Garrison | Garrison Relay disabled 5494 | -8/Garrison | Entered Materials 5626 | -8/Materials | Repaired Reflective Plating 5639 | -8/Materials | Identified exit to Garrison 5689 | -8/Materials | Entered Garrison 5733 | -8/Garrison | Garrison Relay disabled 5782 | -8/Garrison | Triggered checkpoint 5881 | -8/Garrison | Core integrity fell below 50% 5930 | -8/Garrison | Discovered new exit (range 10) 5934 | -8/Garrison | Triggered checkpoint 5974 | -8/Garrison | Triggered checkpoint 6044 | -8/Garrison | Destroyed 7 combat bots 6058 | -8/Garrison | Triggered checkpoint 6086 | -8/Garrison | Triggered checkpoint 6133 | -8/Garrison | Garrison Relay disabled 6172 | -8/Garrison | Discovered new exit (range 13) 6190 | -8/Garrison | Discovered new exit (range 11) 6190 | -8/Garrison | Discovered new exit (range 67) 6190 | -8/Garrison | Discovered new exit (range 47) 6205 | -8/Garrison | Phase Generator disabled 6384 | -8/Garrison | Entered Materials 6384 | -8/Materials | Accompanied by 3 allies 6539 | -8/Materials | Repaired Cmb. Airjet 6672 | -8/Materials | Discovered exit to Factory (range 5) 6730 | -8/Materials | Garrison activated, responded to threat 6747 | -8/Materials | Core integrity fell below 20% 6779 | -8/Materials | Identified exit to Garrison 6783 | -8/Materials | Destroyed by G-47 Trooper with Particle Gun Last Messages --------------- 06765_ U-05 Engineer lays Concrete. 06766_ The unstable cave ceiling collapses. 06766_ U-05 Engineer builds a Wall. 06767_ Critical hit (Burn: +37). 06767_ U-05 Engineer builds a Wall. 06768_ K-01 Serf collects debris. 06769_ U-05 Engineer lays Concrete. 06770_ U-05 Engineer builds a Wall. 06771_ U-05 Engineer lays Concrete. 06772_ Acquired Mni. Grenade Launcher. 06773_ U-05 Engineer lays Concrete. 06773_ Nuclear Core destroyed. 06773_ U-05 Engineer builds a Wall. 06775_ G-47 Trooper suffers critical hit (Burn). 06775_ Slammed into U-05 Engineer. 06776_ ALERT: Construction progress impeded, dispatching reinforcements to local area. 06779_ Connecting with Garrison Access... >>Unlock Access door unlocked. 06779_ EXIT=UNLOCKED: GARRISON Map ----- +----------------------------------------------------+ | ?????????????????????????# #? """ # | | ?????????????????????????# ## """ # | | ?????????????????????????# #### ## """ # | | ?????????????????????????# #??######## # | | ????????????#????????????# #??????????????##### | | ??????????? ??????????# #??????????????????# | | ??????????? ?????????# ##########?????????# | | ???????????? ????????# # #?????????# | | ?????????????# ????????# # """ #?????????# | | ?????????????# ???????# # """ #?????????# | | ?????????????# ???????# # """ ########### | | ?????????????# ######## # # # | | ?????????????# % % / " " # # | | ???????????? # # "R" # # | | ???????????? + "" [ # """ + % + | | ?????????????# "" % # """ """ # | | ?????????????# "T #### # #### """ """ # | | ?????????????## "" # ## """ """ # | | ????????#?????# "" # """ ## # | | ????????# # # """ ############ | | ????????# + # ] """ #??????????# | | ????????# # # #??????????# | | ????????# ?# # ! #??????????# | | ?????????*????# ####### ##########??????# | | ??????????????# """" # g### ######## | | ??????????????# """" # @g !#?# """"" # | | ??????????????# """" # ">" #?# """"" + | | ??????????????# + "G"g #?# """"" # | | ????????? # " !#?# ######### | | ????????? # g #?# """"" #??# | | ?????????? ########?# """"" #??# "" | | ??????????#######??# #????????# """"" #??# "" | | ???????????????????# #????????# #??# "" | | ???????????????????# #????????##########??# | | ???????????????????? ?????????????????????###### | | ???????????????????? ??????????????????????????? | | ???????????????????? ??????????????????????????? | | ?????????????????????????????????????????????????? | | ?????????????????????????????????????????????????? | | ?????????????????????????????????????????????????? | | ?????????????????????????????????????????????????? | | ?????????????????????????????????????????????????? | | ?????????????????????????????????????????????????? | | ?????????????????????????????????????????????????? | | ?????????????????????????????????????????????????? | | ?????????????????????????????????????????????????? | | ?????????????????????????????????????????????????? | | ?????????????????????????????????????????????????? | | ?????????????????????????????????????????????????? | | ?????????????????????????????????????????????????? | +----------------------------------------------------+ Best States ------------- Heat Dissipation 59 Energy Generation 18 Energy Capacity 290 Matter Stores 300 Matter Capacity 300 Sight Range 16 Terrain Scan Density 10 Armor Coverage 375 Resistance: KI 20 Resistance: TH 10 Power Shielding 33 Utility Shielding 66 Evasion (%) 59 Targeting Accuracy 8 Particle Charging 15 Item Schematics ----------------- Imp. Utility Shielding | -8/Materials | Scanalyzed Cmb. Airjet | -8/Materials | Scanalyzed Reactive Plating | -8/Materials | Scanalyzed Robot Schematics ------------------ None Fabricated ------------ Nothing Alien Tech Used ----------------- None Achievements -------------- None Challenges ------------ None Game ------ Seed GammaMediumCalibrator Manual? 0 Play Time 01:15:19 Cumulative 1077.0 hours Start 2023.10.05 @ 01:29:57 End 2023.10.05 @ 09:47:10 Sessions 3 Manual Loads 0 Difficulty Rogue Special Mode None Game No. 449 Rogue 449 Adventurer 0 Explorer 0 Win Type - Total 14 Types 12/0/1/1/0/0/0/0/0 Lore% 72 Gallery% 84 Achievement% 71 Wizard Run 0 Options --------- ASCII 0 Keyboard 1 Movement Numpad Keybinds 0 Fullscreen 1 Font 18/SmallcapsGlow Map View 112x50 Tactical HUD 1 Map Filters NONE Filters NONE Steam 1 RUN: f45df535-3d14-4aa5-a951-5061353672f6